Cogmind - Beta 13 @@@ ROGUE MODE // 2024.06.03 @ 09:58:20 Player: star Result: Self-destructed Performance ------------- Evolutions (4) 2000 Regions Visited (8) 1600 Robots Destroyed (80) 400 Value Destroyed (1899) 1899 Prototype IDs (7) 140 Alien Tech Used (0) 0 Bonus (715) 715 TOTAL SCORE: 6754 Bonus ------- High Alert Combat Kills 15 Entered Garrisons 200 Used RIF Installer 500 Cogmind --------- Core Integrity 361/850 Matter 228/350 Energy 100/100 System Corruption 2% Temperature Cool (0) Movement Core (50) Location -6/Factory Parts ------- > --- POWER (1) -------- (None) > --- PROPULSION (6) --- Improved Gravmag System > --- UTILITY (5) ------ Small Matter Pod Machine Analyzer Machine Analyzer > --- WEAPON (3) ------- (None) > --- INVENTORY (5) ---- Heavy Missile Launcher Peak State ------------ > --- POWER ------------ Micro Nuclear Core > --- PROPULSION ------- Improved VTOL Module Xenon Bombardment Thruster > --- UTILITY ---------- Small Matter Pod Machine Analyzer Improved Terrain Scanner Reaction Control System Authchip [R/Combat] > --- WEAPON ----------- Impact Mace Chainsword > --- INVENTORY -------- Machine Analyzer Heavy EM Shotgun Improved Grenade Launcher Heavy Missile Launcher [Rating: 36] Favorites ----------- Power Cooled Ion Engine Engine Cooled Ion Engine Power Core Micro Nuclear Core Propulsion Improved Aluminum Leg Treads Light Treads Leg Improved Aluminum Leg Hover Unit Improved Hover Unit Flight Unit Improved VTOL Module Utility Large Storage Unit Device Long-range Tractor Beam Storage Large Storage Unit Processor Machine Analyzer Hackware Hacking Suite Weapon High-powered Shotgun Energy Gun Small Laser Ballistic Gun High-powered Shotgun Launcher Improved Grenade Launcher Impact Weapon Impact Mace Slashing Weapon Chainsword Special Melee Weapon Datajack Build | -11 -10 -10 -9 -8 -7 -6 -6 -6 ------- Run | Yrd Mat Min Mat Mat Fac Fac Gar Fac Slots Evolved 8 | . . . 2 2 2 2 . . Power . | . . . . . . . . . Propulsion 4 | . . . 1 2 . 1 . . Utility 3 | . . . . . 2 1 . . Weapon 1 | . . . 1 . . . . . Parts Attached 71 | 6 9 2 20 9 19 . 5 1 Power 7 | 1 . 1 2 . 3 . . . Engine 4 | 1 . . 2 . 1 . . . Core 3 | . . 1 . . 2 . . . Reactor . | . . . . . . . . . Propulsion 23 | 2 2 1 7 3 5 . 2 1 Treads 2 | 2 . . . . . . . . Leg 12 | . 2 1 5 2 2 . . . Wheel . | . . . . . . . . . Hover 2 | . . . 1 . . . . 1 Flight 7 | . . . 1 1 3 . 2 . Utility 15 | 1 3 . 2 2 5 . 2 . Device 6 | . . . 2 2 2 . . . Storage 4 | 1 2 . . . 1 . . . Processor 3 | . . . . . 2 . 1 . Hackware 2 | . 1 . . . . . 1 . Protection . | . . . . . . . . . Artifact . | . . . . . . . . . Weapon 26 | 2 4 . 9 4 6 . 1 . Energy Gun 8 | 1 1 . 4 2 . . . . Energy Cannon . | . . . . . . . . . Ballistic Gun 13 | 1 2 . 5 2 3 . . . Ballistic Cannon . | . . . . . . . . . Launcher 2 | . . . . . 1 . 1 . Special Weapon . | . . . . . . . . . Impact Weapon 1 | . . . . . 1 . . . Slashing Weapon 1 | . . . . . 1 . . . Piercing Weapon . | . . . . . . . . . Special Melee Weapon 1 | . 1 . . . . . . . Unidentified Prototypes 7 | . . . 3 2 2 . . . Corrupted Parts 1 | . 1 . . . . . . . System Corruption 2 | . 2 . . . . . . . Parts Lost 31 | . 3 . 7 1 12 . 8 . Power 4 | . 1 . 1 . 2 . . . Propulsion 16 | . 2 . 3 1 6 . 4 . Utility 4 | . . . 1 . 1 . 2 . Weapon 7 | . . . 2 . 3 . 2 . Highest Loss Streak 8 | . 2 . 5 1 5 . 8 . To Critical Strikes 1 | . . . . . . . 1 . Average Slot Usage (%) 80 | . 89 92 86 98 68 60 48 25 Engine 4 | . 11 . 4 9 3 . . . Core 1 | . . 7 . . 1 6 3 . Treads 1 | . 15 . . . . . . . Leg 20 | . 9 28 28 37 10 . . . Flight 4 | . . . . 5 10 13 9 . Device 5 | . . . 4 9 9 13 7 . Storage 10 | . 14 14 11 9 10 6 6 6 Processor 1 | . . . . . 4 6 6 13 Hackware 3 | . 11 14 2 . . . 3 . Energy Gun 6 | . 3 . 10 9 6 . . . Ballistic Gun 16 | . 21 28 21 17 7 . . . Naked Turns . | . . . . . . . . . Heaviest Build 42 | 13 31 31 38 41 42 15 15 1 Greatest Support 62 | 40 40 20 39 62 39 11 11 10 Greatest Overweight (x) 10 | . 10 1 7 1 3 1 1 . Average Overweight (x) . | . . 1 . . . 1 . . Largest Inventory Capacity 15 | 8 15 15 15 15 15 5 5 5 Average Capacity 12 | 7 12 15 15 15 9 5 5 5 Most Carried 15 | . 4 4 15 15 15 4 4 1 Average Carried 8 | . 1 3 11 13 8 4 3 1 Final Capacity 15 | 8 15 15 15 15 5 5 5 5 Final Carried 15 | . 3 4 14 15 4 4 1 1 Class Distribution -------------------- 44% | Gunner 39% | Mutant 6% | Scavenger-Gunner 5% | Scavenger-Mutant Dominant Class ---------------- Mutant | -10/Materials Mutant | -10/Mines Gunner | -9/Materials Gunner | -8/Materials Mutant | -7/Factory Mutant | -6/Factory Mutant | -6/Garrison Mutant | -6/Factory Resources | -11 -10 -10 -9 -8 -7 -6 -6 -6 ----------- Run | Yrd Mat Min Mat Mat Fac Fac Gar Fac Matter Collected 1787 | 149 308 190 598 241 301 . . . Remotely 499 | . . . 118 241 140 . . . Salvage Created 2347 | . 373 201 1124 308 311 . 30 . Parts 171 | . 25 11 96 15 17 . 7 . Haulers Intercepted 7 | . . . 5 2 . . . . Recyclers Shooed 4 | . . 1 1 1 1 . . . Parts Field Recycled . | . . . . . . . . . Retrieved Matter . | . . . . . . . . . Parts Self-Destructed . | . . . . . . . . . Prevented . | . . . . . . . . . Kills | -11 -10 -10 -9 -8 -7 -6 -6 -6 ------- Run | Yrd Mat Min Mat Mat Fac Fac Gar Fac Combat Hostiles Destroyed 61 | . 10 5 25 8 10 . 3 . Guns 56 | . 10 5 25 8 8 . . . AOE 5 | . . . . . 2 . 3 . Classes Destroyed 13 | . 3 1 7 1 . . 1 . Worker 3 | . . . 3 . . . . . Builder 2 | . . . 2 . . . . . Tunneler 1 | . . . 1 . . . . . Hauler 7 | . . . 5 2 . . . . Recycler 2 | . . 1 1 . . . . . Operator 3 | . 2 . 1 . . . . . Watcher 1 | . . . 1 . . . . . Swarmer 25 | . 3 3 10 4 5 . . . Cutter 3 | . . . . . . . 3 . Grunt 16 | . 7 2 7 . . . . . Brawler 1 | . . . 1 . . . . . Sentry 13 | . . . 7 3 3 . . . Hunter 3 | . . . . 1 2 . . . Best Kill Streak 8 | . 6 3 8 5 5 . 3 . Combat Bots Only 6 | . 6 3 5 5 5 . 3 . Max Kills in Single Turn 3 | . 2 1 3 2 3 . 3 . Gunslinging 1 | . 1 . . 1 . . . . Exploded 3 | . . . . . 2 . 3 . Melee . | . . . . . . . . . Uniques/NPCs Destroyed . | . . . . . . . . . Combat | -11 -10 -10 -9 -8 -7 -6 -6 -6 -------- Run | Yrd Mat Min Mat Mat Fac Fac Gar Fac Hostile Shots Fired 515 | . 72 27 116 20 207 . 73 . Missed 160 | . 15 8 30 5 76 . 26 . Damage Taken 4136 | . 636 234 940 170 1351 . 805 . Core 1047 | . 72 46 186 12 242 . 489 . Absorbed by Shields 76 | . . . . . . . 76 . Core Remaining (%) 73 | 100 . 52 53 97 65 . . . Volleys Fired 162 | . 37 12 70 18 23 . 2 . Largest 3 | . 2 2 3 3 3 . 1 . Hottest 169 | . 60 46 106 136 169 . 36 . Shots Fired 406 | . 70 24 200 54 56 . 2 . Gun 402 | . 70 24 200 54 54 . . . Cannon . | . . . . . . . . . Launcher 4 | . . . . . 2 . 2 . Special . | . . . . . . . . . Kinetic 282 | . 55 24 133 36 34 . . . Thermal 98 | . . . 67 18 13 . . . Explosive 4 | . . . . . 2 . 2 . Electromagnetic 22 | . 15 . . . 7 . . . Robot Hit Streak 13 | . 6 4 12 13 13 . . . Robot Miss Streak 7 | . 4 6 7 6 7 . 1 . Penetration Max . | . . . . . . . . . Secondary Targets 10 | . 4 . 3 2 1 . . . Max Gunslinging Chain 1 | . 1 . 1 1 1 . . . Shots Hit Robots 268 | . 52 14 125 38 38 . 1 . Core Hits 161 | . 22 10 64 21 39 . 5 . Critical Kills . | . . . . . . . . . Critical Parts Destroyed 3 | . . . 3 . . . . . Critical Strikes 3 | . . . 3 . . . . . Destroy 3 | . . . 3 . . . . . Melee Attacks 31 | . . . . . 7 7 17 . Impact 26 | . . . . . 5 6 15 . Slashing 5 | . . . . . 2 1 2 . Piercing . | . . . . . . . . . Sneak Attacks . | . . . . . . . . . Combat Hostiles . | . . . . . . . . . Follow-up Attacks . | . . . . . . . . . Damage Inflicted 4692 | . 645 232 1872 759 945 . 239 . Guns 4216 | . 645 232 1872 759 708 . . . Cannons . | . . . . . . . . . Explosions 440 | . . . . . 237 . 203 . Melee 29 | . . . . . . . 29 . Ramming 7 | . . . . . . . 7 . Kinetic 3034 | . 526 232 1386 517 373 . . . Thermal 972 | . . . 486 242 244 . . . Explosive 440 | . . . . . 237 . 203 . Electromagnetic 210 | . 119 . . . 91 . . . Impact 29 | . . . . . . . 29 . Slashing . | . . . . . . . . . Piercing . | . . . . . . . . . Highest Corruption 4 | . 2 2 2 . 4 . 2 2 Average Corruption 2 | . 2 2 2 . 3 . 2 2 Corruption Purged . | . . . . . . . . . Corruption Blocked . | . . . . . . . . . Effects 32 | . 4 9 15 . 2 . . 2 Message Errors 5 | . . 3 2 . . . . . Matter Fused 10 | . 1 3 4 . 1 . . 1 Heat Flow Errors 2 | . . . 2 . . . . . Energy Discharges 3 | . . . 1 . 1 . . 1 Parts Rejected 1 | . . . 1 . . . . . Data Loss (minor) 5 | . 1 . 4 . . . . . Data Loss (major) 2 | . . 1 1 . . . . . Misfires 2 | . 1 1 . . . . . . Weapon Failures 2 | . 1 1 . . . . . . Overload Shots . | . . . . . . . . . Overflow Damage . | . . . . . . . . . Projectiles . | . . . . . . . . . Explosions . | . . . . . . . . . Melee . | . . . . . . . . . Knockbacks . | . . . . . . . . . Impact . | . . . . . . . . . Kinetic . | . . . . . . . . . Secondary . | . . . . . . . . . Self-Inflicted Damage 66 | . . . . . . . 66 . Shots 1 | . . . . . . . 1 . Rammed 4 | . . . . . 1 . 3 . Targets Rammed 4 | . . . . . 1 . 3 . Kicked . | . . . . . . . . . Crushed . | . . . . . . . . . Highest Temperature 270 | . 110 . 268 102 270 . . . Average Temperature 59 | . 38 . 56 31 121 . . . Received Heat Transfer 882 | . 324 90 225 27 216 . . . Effects 2 | . . . 1 . 1 . . . Energy Bleed 2 | . . . 1 . 1 . . . Siege Activations . | . . . . . . . . . Robots Corrupted . | . . . . . . . . . Combat Hostiles . | . . . . . . . . . Parts Fried . | . . . . . . . . . Impact Corruptions . | . . . . . . . . . Robots Melted . | . . . . . . . . . Combat Hostiles . | . . . . . . . . . Parts Melted 2 | . . . 1 . 1 . . . Heat Transferred 2168 | . . . 1072 546 550 . . . Parts Sabotaged . | . . . . . . . . . Parts Stolen . | . . . . . . . . . Parts Stripped . | . . . . . . . . . Power Chain Reactions . | . . . . . . . . . Alert | -11 -10 -10 -9 -8 -7 -6 -6 -6 ------- Run | Yrd Mat Min Mat Mat Fac Fac Gar Fac Peak Influence 441 | . 235 138 441 395 276 8 114 28 Initial 137 | . . 13 . 137 107 4 5 28 Average 130 | . 95 48 155 266 141 5 35 28 Maximum Alert Level 2 | . 1 . 2 1 1 . . . Low Security (%) 73 | 100 69 100 70 19 77 100 100 100 Level 1 25 | . 30 . 25 80 22 . . . Level 2 1 | . . . 3 . . . . . Level 3 . | . . . . . . . . . Level 4 . | . . . . . . . . . Level 5 . | . . . . . . . . . High Security . | . . . . . . . . . Max Security . | . . . . . . . . . Squads Dispatched 14 | . 3 . 3 . 8 . . . Investigation 1 | . . . 1 . . . . . Extermination 1 | . . . . . 1 . . . Reinforcement 6 | . 3 . 2 . 1 . . . Assault . | . . . . . . . . . Garrison 6 | . . . . . 6 . . . Intercept . | . . . . . . . . . Searches Triggered . | . . . . . . . . . Construction Impeded . | . . . . . . . . . Haulers Reinforced . | . . . . . . . . . Active Scanning Responses . | . . . . . . . . . Cargo Convoy Interrupts . | . . . . . . . . . Stealth | -11 -10 -10 -9 -8 -7 -6 -6 -6 --------- Run | Yrd Mat Min Mat Mat Fac Fac Gar Fac Distress Signals 8 | . 2 . 5 1 . . . . Communications Jammed . | . . . . . . . . . Distress Signals . | . . . . . . . . . Times Spotted 90 | . 19 5 37 10 13 . 6 . Peak Tracking Total 6 | . 6 3 5 6 4 . 6 . Tactical Retreats 1 | . . . 1 . . . . . Traps | -11 -10 -10 -9 -8 -7 -6 -6 -6 ------- Run | Yrd Mat Min Mat Mat Fac Fac Gar Fac Traps Triggered 4 | . . . . . 1 . 3 . Indirectly . | . . . . . . . . . Trap Hack Attempts . | . . . . . . . . . Triggered . | . . . . . . . . . Disarmed . | . . . . . . . . . Reprogrammed . | . . . . . . . . . Reused . | . . . . . . . . . Traps Extracted . | . . . . . . . . . Installed . | . . . . . . . . . Triggered . | . . . . . . . . . Machines | -11 -10 -10 -9 -8 -7 -6 -6 -6 ---------- Run | Yrd Mat Min Mat Mat Fac Fac Gar Fac Machines Disabled 2 | . 1 . 1 . . . . . Max in Single Turn 1 | . 1 . 1 . . . . . Machines Repaired . | . . . . . . . . . Machines Dismantled . | . . . . . . . . . Machines Sabotaged . | . . . . . . . . . Overloaded Fab Kills . | . . . . . . . . . Hacking | -11 -10 -10 -9 -8 -7 -6 -6 -6 --------- Run | Yrd Mat Min Mat Mat Fac Fac Gar Fac Machines Accessed 14 | . . . 5 6 1 1 1 . Terminals 11 | . . . 4 5 1 . 1 . Fabricators . | . . . . . . . . . Repair Stations . | . . . . . . . . . Recycling Units 1 | . . . 1 . . . . . Scanalyzers 1 | . . . . 1 . . . . Garrison Access 1 | . . . . . . 1 . . Total Hacks 30 | . . . 12 14 1 1 2 . Successful 17 | . . . 6 8 1 1 1 . Failed 13 | . . . 6 6 . . 1 . Catastrophic 2 | . . . 2 . . . . . Database Lockouts . | . . . . . . . . . Manual 18 | . . . 7 10 1 . . . Terminals 24 | . . . 11 10 1 . 2 . Fabricators . | . . . . . . . . . Repair Stations . | . . . . . . . . . Recycling Units 1 | . . . 1 . . . . . Scanalyzers 4 | . . . . 4 . . . . Garrison Access 1 | . . . . . . 1 . . Terminal Hacks 6 | . . . 4 1 . . 1 . Alert Level 1 | . . . 1 . . . . . Unreport Threat 1 | . . . 1 . . . . . Garrison Status 1 | . . . . 1 . . . . Zone Layout 2 | . . . 2 . . . . . Garrison Registry 1 | . . . . . . . 1 . Fabricator Hacks . | . . . . . . . . . Repair Station Hacks . | . . . . . . . . . Recycling Unit Hacks 1 | . . . 1 . . . . . Retrieve Components 1 | . . . 1 . . . . . Scanalyzer 4 | . . . . 4 . . . . Insert Component 2 | . . . . 2 . . . . Analyze 2 | . . . . 2 . . . . Garrison Access Hacks 1 | . . . . . . 1 . . Unlock Access 1 | . . . . . . 1 . . Unauthorized Hacks 5 | . . . 1 3 1 . . . Terminals 5 | . . . 1 3 1 . . . Botnet 5 | . . . 1 3 1 . . . Fabricators . | . . . . . . . . . Repair Stations . | . . . . . . . . . Recycling Units . | . . . . . . . . . Scanalyzers . | . . . . . . . . . Garrison Access . | . . . . . . . . . Data Cores Recovered . | . . . . . . . . . Used . | . . . . . . . . . Hacking Detections 8 | . . . 3 4 . . 1 . Full Trace Events 1 | . . . 1 . . . . . Feedback Events . | . . . . . . . . . Feedback Blocked . | . . . . . . . . . Robot Schematics Acquired . | . . . . . . . . . Robots Built . | . . . . . . . . . Authchips . | . . . . . . . . . Time . | . . . . . . . . . Total Robot Build Rating . | . . . . . . . . . Part Schematics Acquired 2 | . . . . 2 . . . . Parts Built . | . . . . . . . . . Authchips . | . . . . . . . . . Time . | . . . . . . . . . Total Part Build Rating . | . . . . . . . . . Parts Repaired . | . . . . . . . . . Time . | . . . . . . . . . Parts Recycled . | . . . . . . . . . Recycled Matter . | . . . . . . . . . Retrieved Matter . | . . . . . . . . . Retrieved Components 9 | . . . 9 . . . . . Parts Scanalyzed 2 | . . . . 2 . . . . Part Schematics Acquired 2 | . . . . 2 . . . . Parts Damaged . | . . . . . . . . . Bothacking | -11 -10 -10 -9 -8 -7 -6 -6 -6 ------------ Run | Yrd Mat Min Mat Mat Fac Fac Gar Fac Used RIF Installer 1 | . . . . . . . 1 . Robots Hacked . | . . . . . . . . . Non-combat . | . . . . . . . . . Combat . | . . . . . . . . . Robot Hacks Applied . | . . . . . . . . . Relay Couplers Released . | . . . . . . . . . Fabnet Peak Effective % . | . . . . . . . . . Robots Rewired . | . . . . . . . . . Allies Hacked . | . . . . . . . . . Hacks Repelled . | . . . . . . . . . Allies | -11 -10 -10 -9 -8 -7 -6 -6 -6 -------- Run | Yrd Mat Min Mat Mat Fac Fac Gar Fac Total Allies . | . . . . . . . . . Largest Group . | . . . . . . . . . Highest-Rated Group . | . . . . . . . . . Highest-Rated Ally . | . . . . . . . . . Total Orders . | . . . . . . . . . Ally Attacks . | . . . . . . . . . Total Damage . | . . . . . . . . . Kills . | . . . . . . . . . Allies Corrupted . | . . . . . . . . . Allies Melted . | . . . . . . . . . Intel | -11 -10 -10 -9 -8 -7 -6 -6 -6 ------- Run | Yrd Mat Min Mat Mat Fac Fac Gar Fac Robot Analysis Total . | . . . . . . . . . Derelict Logs Recovered 1 | . . 1 . . . . . . Drone Launches . | . . . . . . . . . Drone Recoveries . | . . . . . . . . . Exploration | -11 -10 -10 -9 -8 -7 -6 -6 -6 ------------- Run | Yrd Mat Min Mat Mat Fac Fac Gar Fac Turns Passed 4420 | 109 442 470 1476 505 944 152 265 57 Spaces Moved 2508 | 69 169 222 835 287 562 35 236 93 Core 167 | 10 4 . 22 . . . 119 12 Treads 162 | 59 103 . . . . . . . Legs 1574 | . 62 222 806 287 197 . . . Wheels . | . . . . . . . . . Hover 87 | . . . 6 . . . . 81 Flight 518 | . . . 1 . 365 35 117 . Fastest Speed 29 | 50 160 190 120 120 34 109 29 50 Average Speed 129 | 144 181 190 133 127 121 109 71 58 Slowest Speed 550 | 160 550 190 440 190 330 109 109 60 Overloaded Moves . | . . . . . . . . . Propulsion Burnouts . | . . . . . . . . . Robots Hopped . | . . . . . . . . . Cave-ins Triggered . | . . . . . . . . . Exploration Rate (%) 27 | 4 40 53 70 30 11 1 38 4 Regions Visited 8 Branch Regions 1 Pre-discovered Areas 1 | . . 1 . . . . . . Known Exits Taken 1 | . . . . . . 1 . . Unknown Exits Taken 6 | 1 1 1 1 1 1 . . . Scrap Searched 1 | . . 1 . . . . . . Spaces Dug 32 | . . . . . 6 6 20 . Terrain Destroyed 64 | . . . . . 29 6 29 . Melee 19 | . . . . . 6 6 7 . Projectile . | . . . . . . . . . AOE 45 | . . . . . 23 . 22 . Terrain Rammed . | . . . . . . . . . Walls Destroyed . | . . . . . . . . . Machines Disabled . | . . . . . . . . . Actions | -11 -10 -10 -9 -8 -7 -6 -6 -6 --------- Run | Yrd Mat Min Mat Mat Fac Fac Gar Fac Total 3296 | 76 239 246 1052 387 762 138 302 94 Wait 425 | 2 11 11 103 63 135 98 2 . Move 2499 | 68 168 221 834 286 561 34 234 93 Hop . | . . . . . . . . . Pick Up 29 | . 6 . 13 4 5 . 1 . Fast Attach 40 | 6 4 1 11 2 12 . 3 1 Attach 13 | . . . 4 2 5 . 2 . Detach 6 | . 1 . 3 1 1 . . . Swap 18 | . 5 1 5 5 2 . . . Drop 35 | . 7 . 9 6 11 . 2 . Fire 162 | . 37 12 70 18 23 . 2 . Melee 27 | . . . . . 6 6 15 . Ram 4 | . . . . . 1 . 3 . Kick . | . . . . . . . . . Crush . | . . . . . . . . . Escape Stasis 38 | . . . . . . . 38 . Rewire . | . . . . . . . . . Trap . | . . . . . . . . . Miscellaneous . | . . . . . . . . . Route ------- -11/Scrapyard -10/Materials -10/Mines -9/Materials (discovered 3 exits: *Mat x2 / [*Min]) -8/Materials -7/Factory -6/Factory -6/Garrison (discovered 3 exits: [*Fac x3]) -6/Factory History --------- Turn | Location | Event 2 | -11/Scrapyard | Discovered new exit (range 16) 110 | -11/Scrapyard | Entered Materials 311 | -10/Materials | Discovered new exit (range 6) 353 | -10/Materials | Build established: Mutant 552 | -10/Materials | Entered Mines 592 | -10/Mines | Learned location of Mines (-9) 620 | -10/Mines | Found a hidden stash of uninstalled traps 998 | -10/Mines | Discovered new exit (range 7) 1022 | -10/Mines | Entered Materials 1022 | -9/Materials | Evolved 2 slots: Propulsion x1, Weapon x1 1082 | -9/Materials | Lost 5 parts (1p2n2w) 1392 | -9/Materials | Build established: Scavenger-Gunner 1687 | -9/Materials | Discovered new exit (range 3) 1704 | -9/Materials | Build established: Gunner 1837 | -9/Materials | Discovered new exit (range 15) 2232 | -9/Materials | Discovered new exit (range 16) 2498 | -9/Materials | Entered another Materials area 2498 | -8/Materials | Evolved 2 slots: Propulsion x2 2893 | -8/Materials | Discovered new exit (range 10) 3003 | -8/Materials | Entered Factory 3003 | -7/Factory | Evolved 2 slots: Utility x2 3177 | -7/Factory | Garrison activated, responded to threat 3222 | -7/Factory | Lost 3 parts (1p2n) 3472 | -7/Factory | Lost 5 parts (2n1u2w) 3533 | -7/Factory | Garrison activated, responded to threat 3575 | -7/Factory | Lost 3 parts (1p2n) 3929 | -7/Factory | Build established: Mutant 3937 | -7/Factory | Discovered new exit (range 9) 3947 | -7/Factory | Entered another Factory area 3947 | -6/Factory | Evolved 2 slots: Propulsion x1, Utility x1 4096 | -6/Factory | Identified exit to Garrison 4099 | -6/Factory | Entered Garrison 4281 | -6/Garrison | Triggered checkpoint 4318 | -6/Garrison | Discovered new exit (range 8) 4321 | -6/Garrison | Discovered new exit (range 74) 4321 | -6/Garrison | Discovered new exit (range 46) 4321 | -6/Garrison | Discovered new exit (range 8) 4332 | -6/Garrison | Lost 8 parts (4n2u2w) 4344 | -6/Garrison | Installed Relay Interface Framework 4362 | -6/Garrison | Core integrity fell below 50% 4364 | -6/Garrison | Entered Factory 4421 | -6/Factory | Self-destructed Last Messages --------------- 04361_ Destabilizing: System interference. 04361_ Machine Analyzer temporarily disabled. 04362_ Penetrated by Slug. 04363_ Attempting to access garrison exit controls... RIF authorized. LOCATION=UNKNOWN GOAL=ESCAPE 04370_ System corrupted: Energy discharge (-40). 04371_ Acquired Imp. Gravmag System. 04379_ >> Machine Analyzer network decryption results: 04379_ Repair Station x1 04388_ >> Machine Analyzer network decryption results: 04388_ Repair Station x1 04399_ >> Machine Analyzer network decryption results: 04399_ Repair Station x1 04401_ System corrupted: Matter fused (-10). 04407_ >> Machine Analyzer network decryption results: 04407_ DSF Access x1 04413_ >> Machine Analyzer network decryption results: 04413_ Terminal x1 Map ----- +----------------------------------------------------+ | ?????????????""""""?""""""???????????????????????? | | ?????????????""""""?""""""???????????????????????? | | ?????????????""""""?""""""???????????????????????? | | ?????????????""""""?""""""???????????????????????? | | ?????????????????????????????????????????????????? | | ?????????????????????????????????????????????????? | | ?????????????????????????????????????????????????? | | ???????????????????????##????????????????????????? | | ???????????????????????# ???????????????????????? | | ???????????????????????# """""""""???????????????? | | ??????????##???????????# ??????????????????????? | | ?????????##T ########### """""""""???????????????? | | ???????? # ???????????????? | | ???????? # """"""""" #????????????? | | ??????? + #????????????? | | ??????? # """"""""" #????????????? | | ??????? # #????????????? | | ??????????????######## # """"""""" +????????????? | | ?????????????????????# # #????????????? | | ?????????????????????# + * #????????????? | | ????????????????????# ####+########?????????????? | | #??????????????????# #??# #????????????????????? | | +????????????????### #### #????????????????????? | | #????????????????# ## #????????????????????? | | #????????????????# ## #####????????????????? | | #????????????????# @ k +????????????????? | | #????????????????# ##+#####????????????????? | | #????????????????# # #????????????????? | | #????????????????####### #????????????????? | | +???????????############ #????????????????? | | #?????????+ + " " #????????????????? | | #?????????# ### "R" #????????????????? | | #?????????# " " #?# """ #????????????????? | | #???????????? " " #?#+######????????????????? | | ############## " " #?# #?????????????????????? | | # # " " ### ###???????????????????? | | + + " " #???????????????????? | | # """"""" # " " +???????????????????? | | # """"""" # " " #???????????????????? | | # """"""" + " " ######???????????????????? | | ### """"""" # " " #????????????????????????? | | ??# # #????????????????????????? | | ??# """"""" + = #????????????????????????? | | ??# """"""" ###### #????????????????????????? | | ??# """"""" #????# #????????????????????????? | | ??# """"""" #????# #????????????????????????? | | ??? ?????? #????# #????????????????????????? | | ???#?????#######????# #????????????????????????? | | ????????????????????# #????????????????????????? | | ???????"""??????????# #????????????????????????? | +----------------------------------------------------+ Best States ------------- Heat Dissipation 37 Energy Generation 15 Energy Capacity 280 Matter Stores 350 Matter Capacity 350 Sight Range 16 Terrain Scan Range 16 Terrain Scan Density 110 Evasion (%) 71 Recoil Reduction 2 Offensive Hacking 10 Authchip Count 1 Item Schematics ----------------- Machine Analyzer | -8/Materials | Scanalyzed Blade Saw | -8/Materials | Scanalyzed Robot Schematics ------------------ None Fabricated ------------ Nothing Alien Tech Used ----------------- None Achievements -------------- None Challenges ------------ None Game ------ Seed NeutrinoThunderCorpse Manual? 0 Play Time 01:06:13 Cumulative 41.0 hours Start 2024.05.24 @ 10:26:11 End 2024.06.03 @ 09:58:20 Sessions 4 Manual Loads 0 Difficulty Rogue Special Mode None Game No. 76 Rogue 76 Adventurer 0 Explorer 0 Win Type - Total 0 Types 0/0/0/0/0/0/0/0/0 Lore% 29 Gallery% 42 Achievement% 30 Wizard Run 0 Options --------- Layout 0 ASCII 0 Keyboard 0 Movement Numpad Keybinds 0 Fullscreen 1 Font 18/SmallcapsGlow Map View 76x50 Zoom Use 0% Tactical HUD 1 Map Filters NONE Filters NONE Steam 1 RUN: e091aff8-ada9-4250-bc97-81b4c7922e6a